bitfinex/quotes_SOLUSD_20240717
["timestamp","ask_amount","ask_price","bid_price","bid_amount"]
[1721230520711,7.0503178,160.71,160.7,60.222]
[1721230521012,7.0503178,160.71,160.7,60.052]
[1721230521185,7.0503178,160.71,160.66,6.2242]
[1721230521186,6.2233,160.69,160.66,15.052]
[1721230521391,6.2228,160.7,160.66,15.052]
[1721230521605,6.2228,160.7,160.66,21.2762]
[1721230521804,6.2232,160.69,160.67,18.76]
[1721230522599,6.2228,160.7,160.68,45.0]
[1721230522803,6.2231,160.69,160.68,45.0]
[1721230523004,0.8280178,160.71,160.62,37.5088]
[1721230523300,0.8280178,160.71,160.67,6.2236]
[1721230523510,0.8280178,160.71,160.68,1.24421613]
[1721230524019,0.8280178,160.71,160.7,24.9827]
[1721230524320,0.8280178,160.71,160.7,41.49388938]
[1721230524529,0.8280178,160.71,160.7,86.83388938]
[1721230524996,0.8280178,160.71,160.7,122.69688938]
[1721230525913,0.8280178,160.71,160.7,115.2301]
[1721230526210,0.8280178,160.71,160.7,121.4528]
[1721230526914,0.8280178,160.71,160.7,115.2301]
[1721230527089,0.8280178,160.71,160.7,85.4601]
[1721230527290,0.8280178,160.71,160.7,34.1971]
[1721230527485,0.8280178,160.71,160.62,10.0]
[1721230527486,6.2231,160.7,160.65,30.9532]
[1721230527706,7.0505178,160.71,160.66,6.2242]
[1721230527913,6.2228,160.7,160.66,6.2242]
[1721230528089,0.8280178,160.71,160.65,15.3916]
[1721230528291,0.8280178,160.71,160.67,15.5593]
[1721230528491,0.8280178,160.71,160.68,18.76]
[1721230528801,7.0504178,160.71,160.68,18.76]
[1721230529001,7.0504178,160.71,160.69,45.17]
[1721230529395,7.0504178,160.71,160.69,63.93]
[1721230529625,0.8280178,160.71,160.69,63.93]
[1721230529913,7.0505178,160.71,160.69,45.17]
[1721230530425,6.2227,160.7,160.69,45.0]
[1721230530626,6.2227,160.7,160.65,21.616]
[1721230530801,6.2227,160.7,160.66,6.3942]
[1721230530999,6.2227,160.7,160.66,18.93]
[1721230531213,6.2235,160.68,160.67,1.24441096]
[1721230531446,16.3843178,160.71,160.62,6.5205]
[1721230531628,6.2249,160.65,160.61,30.7442]
[1721230531926,6.2244,160.66,160.62,18.76]
[1721230532124,0.8280178,160.71,160.62,18.76]
[1721230532289,6.2258,160.62,160.57,15.1791]
[1721230532489,6.2249,160.65,160.6,6.2264]
[1721230532708,15.5576,160.7,160.61,7.47104501]
[1721230533017,0.8280178,160.71,160.6,18.76]
[1721230533018,15.5596,160.68,160.6,18.76]
[1721230533195,16.3842178,160.71,160.61,1.2447716]
[1721230533520,15.5592,160.68,160.57,15.1791]
[1721230533697,6.2254,160.64,160.59,6.2268]
[1721230534018,15.5592,160.68,160.58,18.76]
[1721230534321,6.2247,160.65,160.6,24.9865]
[1721230534498,6.2243,160.66,160.61,24.9859]
[1721230534820,6.2241,160.67,160.61,18.76]
[1721230535011,6.2242,160.67,160.63,18.76]
[1721230535214,6.2242,160.67,160.64,1.24469341]
[1721230535412,6.2242,160.67,160.64,46.24469341]
[1721230535615,16.3841178,160.71,160.64,63.76]
[1721230535811,0.8280178,160.71,160.65,0.34]
[1721230536000,6.2237,160.68,160.65,0.17]
[1721230536405,0.8280178,160.71,160.65,0.17]
[1721230536606,7.0507178,160.71,160.68,18.76]
[1721230536798,6.2227,160.7,160.69,45.0]
[1721230538116,16.3846178,160.71,160.65,0.17]
[1721230538313,16.3846178,160.71,160.64,0.17]
[1721230538512,16.3846178,160.71,160.63,19.1]
[1721230538825,6.2246,160.66,160.61,16.385]
[1721230539012,15.5588,160.69,160.59,21.7933]
[1721230539213,21.779,160.69,160.6,18.76]
[1721230539424,6.2251,160.64,160.6,18.76]
[1721230539724,6.2255,160.63,160.6,18.76]
[1721230539931,6.2259,160.62,160.6,18.76]
[1721230540707,15.5623,160.65,160.58,18.76]
[1721230540901,6.2266,160.6,160.59,0.17]
[1721230541114,6.2266,160.6,160.57,16.1983]
[1721230541708,6.2266,160.6,160.57,34.9583]
[1721230541906,6.2265,160.61,160.57,34.9583]
[1721230542110,15.5623,160.65,160.55,29.77]
[1721230542423,15.5641,160.63,160.54,12.8915]
[1721230542821,6.2271,160.59,160.55,18.76]
[1721230543018,6.2274,160.58,160.54,6.6629]
[1721230543213,6.2273,160.59,160.54,12.8918]
[1721230543620,6.2273,160.59,160.55,6.2285]
[1721230543819,6.2263,160.61,160.56,25.1581]
[1721230544025,15.5611,160.66,160.57,26.23271983]
[1721230544231,6.2262,160.62,160.58,18.93]
[1721230544537,6.2264,160.61,160.57,0.17]
[1721230544713,15.5632,160.64,160.57,1.24517277]
[1721230544919,15.5632,160.64,160.58,1.24522262]
[1721230545236,15.5632,160.64,160.55,45.3409]
[1721230545237,15.5632,160.64,160.57,63.93]
[1721230545435,6.2274,160.58,160.57,45.17]
[1721230545731,6.2274,160.58,160.55,45.3409]
[1721230545732,6.2271,160.59,160.56,45.0]
[1721230545916,6.2271,160.59,160.56,45.17]
[1721230546829,6.2267,160.6,160.56,45.17]
[1721230547033,6.2271,160.59,160.57,1.24531484]
[1721230547225,6.2271,160.59,160.56,63.76]
[1721230547530,6.2267,160.6,160.56,69.9881]
[1721230547711,6.2262,160.62,160.57,6.2277]
[1721230547913,6.2263,160.61,160.58,45.0]
[1721230548132,6.2263,160.61,160.56,79.3299]
[1721230548318,6.2263,160.61,160.58,18.76]
[1721230548634,6.2263,160.61,160.59,45.0]
[1721230548819,6.226,160.62,160.59,45.0]
[1721230549131,6.2266,160.6,160.59,46.24506979]
[1721230549340,6.2266,160.6,160.59,45.0]
[1721230549538,6.2278,160.57,160.54,6.6629]
[1721230549717,6.2278,160.57,160.55,45.17]
[1721230550125,6.2289,160.54,160.53,16.1564]
[1721230550547,6.2278,160.57,160.53,16.1564]
[1721230550732,6.2274,160.58,160.53,16.1564]
[1721230551051,6.2271,160.59,160.55,6.2285]
[1721230551214,6.0877,160.62,160.56,1.24530313]
[1721230551411,15.562,160.65,160.56,1.24530313]
[1721230551615,6.2269,160.6,160.56,1.24530313]
[1721230551839,6.2269,160.6,160.56,26.23340313]
[1721230552021,6.2263,160.61,160.57,63.93]
[1721230552225,6.2255,160.63,160.59,24.987]
[1721230552522,6.2255,160.63,160.6,63.93]
[1721230552732,6.2259,160.62,160.6,45.17]
[1721230553040,6.2255,160.63,160.61,45.0]
[1721230553237,6.2246,160.66,160.61,20.00499127]
[1721230553440,6.2246,160.66,160.62,0.17]
[1721230553618,6.2246,160.66,160.62,1.5847537]
[1721230554031,6.224,160.67,160.63,18.76]
[1721230554521,16.3839178,160.71,160.64,63.93]
[1721230554522,6.2235,160.68,160.64,63.93]
[1721230554727,0.8280178,160.71,160.65,1.24464742]
[1721230554929,6.2242,160.67,160.65,1.24464742]
[1721230555141,6.2232,160.69,160.64,70.155]
[1721230555339,6.2232,160.69,160.65,0.17]
[1721230555527,6.2228,160.7,160.66,18.76]
[1721230555729,6.2228,160.7,160.67,1.41445802]
[1721230556023,6.2231,160.69,160.68,1.2444504]
[1721230556239,6.2231,160.69,160.67,45.17]
[1721230556739,0.8280178,160.71,160.67,45.17]
[1721230557321,6.2235,160.68,160.67,45.17]
[1721230557723,0.8280178,160.71,160.67,45.17]
[1721230558120,6.223,160.7,160.67,45.17]
[1721230558326,0.8280178,160.71,160.67,45.17]
[1721230558526,6.2235,160.68,160.67,45.17]
[1721230559431,6.2235,160.68,160.67,45.0]
[1721230559631,0.8280178,160.71,160.67,45.0]
[1721230559834,6.2235,160.68,160.67,45.0]
[1721230560041,6.2231,160.69,160.67,45.17]
[1721230560424,6.2231,160.69,160.68,1.24452295]
[1721230560624,6.2235,160.68,160.67,45.17]
[1721230561032,6.2231,160.7,160.67,46.41452852]
[1721230561351,6.2235,160.68,160.67,45.17]
[1721230561524,6.2232,160.69,160.67,45.17]
[1721230561724,6.2232,160.69,160.68,1.24451372]
[1721230562222,6.2232,160.69,160.67,45.17]
[1721230562449,0.8280178,160.71,160.68,1.24451137]
[1721230562951,6.2227,160.7,160.69,0.17]
[1721230563128,0.8280178,160.71,160.69,0.17]
[1721230565652,7.0505178,160.71,160.68,1.24447207]
[1721230566335,0.8280178,160.71,160.68,1.24447207]
[1721230566531,0.8280178,160.71,160.7,18.76]
[1721230566723,0.8280178,160.71,160.7,71.39688663]
[1721230566931,0.8280178,160.71,160.7,65.17418663]
[1721230567247,0.8280178,160.71,160.7,64.1]
[1721230567429,0.8280178,160.71,160.7,70.3227]
[1721230567842,0.8280178,160.71,160.7,64.1]
[1721230568032,0.8280178,160.71,160.7,46.4141353]
[1721230568247,7.0503178,160.71,160.68,18.76]
[1721230568543,6.2234,160.69,160.67,15.781]
[1721230568754,6.2234,160.69,160.68,0.17]
[1721230569549,0.8280178,160.71,160.68,0.17]
[1721230569854,7.0507178,160.71,160.68,1.4143431]
[1721230570028,7.0507178,160.71,160.68,46.4143431]
[1721230570658,0.8280178,160.71,160.68,65.1743431]
[1721230570833,0.8280178,160.71,160.7,24.9827]
[1721230571031,0.8280178,160.71,160.7,71.56680036]
[1721230572938,21.9285,160.82,160.75,18.76]
[1721230573144,6.22,160.77,160.76,45.0]
[1721230573723,6.2206,160.76,160.7,22.1006]
[1721230574029,6.2213,160.74,160.71,45.17]
[1721230574242,6.2209,160.75,160.71,71.39640513]
[1721230574643,0.82760379,160.79,160.72,20.17403804]
[1721230574948,0.82760379,160.79,160.73,45.0]
[1721230574949,6.2212,160.74,160.73,45.0]
[1721230575861,15.5496,160.78,160.71,0.17]
[1721230575862,0.82760379,160.77,160.71,1.24412176]
[1721230576060,16.37920379,160.76,160.67,22.0049]
[1721230576234,16.37920379,160.76,160.67,34.541]
[1721230576235,0.82760379,160.75,160.67,34.541]
[1721230576436,6.2232,160.69,160.67,34.541]
[1721230576653,6.2228,160.7,160.67,34.541]
[1721230577039,0.82760379,160.75,160.67,34.541]
[1721230577266,6.2221,160.72,160.68,20.00439219]
[1721230577562,6.2221,160.72,160.68,18.76]
[1721230577860,0.82760379,160.76,160.67,15.781]
[1721230577861,15.5526,160.75,160.67,15.781]
[1721230578068,6.2225,160.71,160.68,18.76]
[1721230578233,6.2223,160.72,160.69,1.24432827]
[1721230578431,45.3096,160.78,160.71,6.222]
[1721230578670,6.2216,160.73,160.71,18.76]
[1721230578964,6.2212,160.74,160.7,18.76]
[1721230579341,6.2209,160.75,160.71,63.93]
[1721230579645,6.2205,160.76,160.71,71.39615313]
[1721230579850,6.2205,160.76,160.73,18.76]
[1721230580053,6.2205,160.76,160.74,45.17]
[1721230580235,6.2204,160.76,160.74,45.17]
[1721230580441,6.2208,160.75,160.74,45.0]
[1721230581144,6.22,160.78,160.74,63.93]
[1721230581340,6.22,160.78,160.75,1.41384215]
[1721230581864,21.9279,160.82,160.75,0.17]
[1721230581865,6.2201,160.77,160.75,0.17]
[1721230582079,6.2204,160.76,160.75,0.17]
[1721230582376,15.5478,160.8,160.71,18.76]
[1721230582543,15.5478,160.8,160.7,28.184]
[1721230582544,6.2215,160.74,160.7,15.5563]
[1721230582747,6.2217,160.73,160.68,6.2235]
[1721230582941,6.2093,160.74,160.64,15.5626]
[1721230583139,6.2235,160.68,160.65,18.76]
[1721230583373,6.2232,160.69,160.65,18.76]
[1721230583539,6.2228,160.7,160.65,18.76]
[1721230584071,6.2232,160.69,160.65,24.9846]
[1721230584655,6.2236,160.68,160.65,18.76]
[1721230585056,16.38190379,160.73,160.65,18.76]
[1721230585057,6.2232,160.69,160.65,24.9846]
[1721230585439,16.38190379,160.73,160.66,24.9843]
[1721230585440,6.2228,160.7,160.66,24.9843]
[1721230585643,16.37930379,160.76,160.68,18.76]
[1721230585878,6.222,160.72,160.69,1.24422311]
[1721230586043,15.5534,160.74,160.69,1.24422311]
[1721230586247,6.2227,160.7,160.69,1.24422311]
[1721230586547,15.5534,160.74,160.68,45.0]
[1721230586548,6.2231,160.69,160.68,45.0]
[1721230586745,6.2231,160.69,160.68,46.24451058]
[1721230587055,6.2235,160.68,160.67,45.0]
[1721230588082,6.2248,160.65,160.62,15.3488]
[1721230588395,6.2244,160.66,160.62,15.3488]
[1721230588558,6.2244,160.66,160.63,1.24473304]
[1721230588957,15.5559,160.71,160.63,18.76]
[1721230589269,15.5559,160.71,160.62,30.9126]
[1721230589270,6.2228,160.7,160.66,18.76]
[1721230589580,6.2228,160.7,160.67,46.2444608]
[1721230589785,6.2225,160.71,160.68,1.2444121]
[1721230590461,6.2221,160.72,160.69,18.76]
[1721230590784,6.2221,160.72,160.7,63.93]
[1721230590958,6.2221,160.72,160.7,18.76]
[1721230591156,6.2221,160.72,160.71,45.17]
[1721230591368,6.2221,160.72,160.71,45.0]
[1721230591589,6.2221,160.72,160.71,45.17]
[1721230591964,6.2221,160.72,160.71,45.0]
[1721230593194,6.2221,160.72,160.71,45.17]
[1721230593486,6.2221,160.72,160.71,45.0]
[1721230595266,15.5544,160.73,160.66,18.76]
[1721230595581,6.2236,160.68,160.67,45.17]
[1721230595772,6.2239,160.67,160.64,18.76]
[1721230596594,6.2231,160.69,160.66,18.76]
[1721230597088,6.2235,160.68,160.67,45.0]
[1721230597457,15.5544,160.73,160.67,45.0]
[1721230597661,6.2234,160.69,160.67,45.0]
[1721230597884,6.2235,160.68,160.66,63.76]
[1721230598061,6.2235,160.68,160.67,0.17]
[1721230598464,6.223,160.7,160.67,0.17]
[1721230598687,6.2232,160.69,160.67,0.17]
[1721230598890,6.2235,160.68,160.67,0.17]
[1721230599190,6.2235,160.68,160.66,45.0]
[1721230599368,6.2235,160.68,160.65,63.93]
[1721230599692,15.5527,160.75,160.65,63.93]
[1721230599896,31.1003,160.77,160.66,0.17]
[1721230599897,6.2233,160.69,160.66,0.17]
[1721230600063,6.2236,160.68,160.66,0.17]
[1721230600260,6.2231,160.69,160.66,0.17]
[1721230600598,6.2232,160.69,160.66,0.17]
[1721230601778,6.2232,160.69,160.66,63.93]
[1721230602067,22.2385,160.71,160.58,16.365]
[1721230602289,6.2255,160.63,160.58,22.5923]
[1721230602600,6.2247,160.65,160.6,6.2265]
[1721230602787,6.2251,160.64,160.61,1.24491178]
[1721230602998,16.38490379,160.7,160.61,7.47111178]
[1721230603174,16.38490379,160.7,160.61,1.24491178]
[1721230603175,6.2251,160.64,160.61,1.24491178]
[1721230603497,6.2256,160.63,160.58,35.065]
[1721230603676,6.2251,160.64,160.58,35.065]
[1721230604020,6.2251,160.64,160.59,7.47162935]
[1721230604175,6.2251,160.64,160.6,0.17]
[1721230604384,6.2251,160.64,160.6,45.34]
[1721230604588,15.5596,160.68,160.61,18.7]
[1721230604763,6.2235,160.68,160.63,6.2251]
[1721230604973,6.2235,160.68,160.64,46.41462047]
[1721230605170,6.2228,160.7,160.65,7.63911716]
[1721230605471,0.82760379,160.74,160.66,62.85729552]
[1721230605677,0.82760379,160.74,160.67,1.24437977]
[1721230605890,6.2229,160.7,160.68,1.24438458]
[1721230606089,15.5549,160.73,160.66,45.0]
[1721230606274,6.2243,160.66,160.65,45.0]
[1721230606691,6.224,160.67,160.64,45.0]
[1721230607303,6.224,160.67,160.59,10.0]
[1721230607304,6.2251,160.64,160.6,21.7921]
[1721230607483,6.2248,160.65,160.61,0.17]
[1721230607672,6.2239,160.67,160.62,6.2257]
[1721230608076,6.2239,160.67,160.62,24.9257]
[1721230608379,6.2243,160.66,160.62,18.7]
[1721230608580,6.225,160.64,160.63,45.17]
[1721230608786,6.2248,160.65,160.63,45.17]
[1721230609172,6.2239,160.67,160.63,63.87]
[1721230609495,6.2235,160.68,160.64,0.17]
[1721230609793,6.2247,160.65,160.63,45.17]
[1721230609993,6.225,160.64,160.63,0.17]
[1721230610175,6.2243,160.66,160.63,0.17]
[1721230610589,15.5575,160.7,160.59,16.0805]
[1721230610805,6.2252,160.64,160.6,26.17115337]
[1721230611106,15.5575,160.7,160.62,18.7]
[1721230611290,15.5575,160.7,160.6,15.5659]
[1721230611291,6.2249,160.65,160.63,1.24468817]
[1721230611606,6.2254,160.64,160.61,1.24485011]
[1721230611908,6.225,160.65,160.59,22.3071]
[1721230612101,6.2251,160.64,160.6,51.5665]
[1721230612305,6.2254,160.64,160.6,45.34]
[1721230612502,6.2254,160.64,160.6,51.5664]
[1721230612811,0.82760379,160.7,160.6,45.34]
[1721230613012,0.82760379,160.7,160.61,19.9447761]
[1721230613215,6.2249,160.65,160.62,45.34]
[1721230613516,0.82760379,160.7,160.62,70.0958]
[1721230614086,6.2245,160.66,160.62,63.87]
[1721230614286,6.2248,160.65,160.62,63.87]
[1721230616080,6.2248,160.65,160.62,65.11483869]
[1721230616702,6.2238,160.68,160.62,65.11483869]
[1721230617010,6.2238,160.68,160.64,18.7]
[1721230617215,6.2238,160.68,160.65,46.41457832]
[1721230617595,6.224,160.67,160.65,46.41457832]
[1721230617794,6.224,160.67,160.65,45.17]
[1721230618289,6.2236,160.68,160.65,45.17]
[1721230620223,6.224,160.67,160.65,45.17]
[1721230620396,15.5586,160.69,160.62,18.7]
[1721230620596,0.82760379,160.68,160.61,15.5653]
[1721230620894,6.2253,160.64,160.61,1.2449078]
[1721230621121,6.2253,160.64,160.59,45.8805]
[1721230621285,6.2253,160.64,160.6,18.7]
[1721230621490,6.2253,160.64,160.61,1.2449097]
[1721230621932,6.2258,160.62,160.61,1.2449097]
[1721230622105,6.2258,160.62,160.59,45.8805]
[1721230622106,6.2258,160.62,160.6,1.24507608]
[1721230622313,6.2258,160.62,160.59,16.0805]
[1721230622817,6.2258,160.62,160.6,1.24506509]
[1721230622989,6.2255,160.63,160.59,16.0805]
[1721230623190,6.2255,160.63,160.6,1.24503137]
[1721230623417,6.2258,160.62,160.6,45.0]
[1721230623720,6.2259,160.62,160.6,45.0]
[1721230624210,6.2262,160.61,160.6,45.0]
[1721230624412,6.2262,160.61,160.56,24.9281]
[1721230624707,15.5613,160.66,160.57,1.41519162]
[1721230624908,0.82760379,160.67,160.6,6.2266]
[1721230625210,6.2248,160.65,160.61,0.17]
[1721230625628,6.2248,160.65,160.61,46.58485183]
[1721230625822,6.2251,160.64,160.61,46.41485183]
[1721230626125,15.5583,160.69,160.61,65.11485183]
[1721230626421,6.2227,160.7,160.64,34.2622]
[1721230626625,6.2232,160.69,160.65,0.34]
[1721230626813,15.5557,160.72,160.65,45.0]
[1721230627227,6.2236,160.68,160.64,46.24460512]
[1721230627431,0.82760379,160.71,160.66,1.24460512]
[1721230627603,6.2239,160.67,160.66,1.24460512]
[1721230627805,6.2239,160.67,160.65,0.17]
[1721230628042,6.2244,160.66,160.64,45.0]
[1721230628330,6.2244,160.66,160.63,45.0]
[1721230628532,6.2239,160.68,160.63,45.0]
[1721230628744,6.2239,160.68,160.64,1.24476128]
[1721230629051,6.2233,160.69,160.65,1.24467913]
[1721230629204,6.2227,160.71,160.65,63.87]
[1721230629409,6.2227,160.7,160.65,45.17]
[1721230629603,6.2227,160.7,160.65,51.3945]
[1721230629920,6.2224,160.71,160.66,24.9241]
[1721230630126,6.2221,160.72,160.67,52.80823905]
[1721230630423,6.2221,160.72,160.67,51.5638]
[1721230630620,6.2224,160.71,160.67,51.5638]
[1721230631038,6.2219,160.73,160.68,1.24441781]
[1721230631229,6.222,160.72,160.69,0.17]
[1721230631549,6.222,160.72,160.68,7.46774701]
[1721230631828,6.2216,160.73,160.69,45.17]
[1721230632401,6.2216,160.73,160.69,51.393]
[1721230632622,6.2212,160.74,160.69,51.393]
[1721230632836,36.3538,160.8,160.71,18.7]
[1721230632837,0.82760379,160.8,160.71,18.7]
[1721230633030,0.82760379,160.84,160.73,6.2212]
[1721230633229,6.2201,160.77,160.74,46.41391408]
[1721230633440,6.2201,160.77,160.74,1.24391408]
[1721230633629,6.2201,160.77,160.75,46.24395341]
[1721230633828,6.2197,160.78,160.75,46.24395341]
[1721230634027,6.2193,160.79,160.76,45.0]
[1721230634322,6.2193,160.79,160.74,69.9211]
[1721230634521,6.2193,160.79,160.75,0.17]
[1721230634854,6.2204,160.76,160.74,45.0]
[1721230635034,6.2204,160.76,160.73,45.0]
[1721230635345,0.82760379,160.8,160.74,1.24401087]
[1721230635549,0.82760379,160.8,160.73,45.0]
[1721230636352,6.2197,160.78,160.73,51.2213]
[1721230636523,6.2197,160.78,160.74,0.17]
[1721230637143,0.82760379,160.84,160.78,6.2196]
[1721230637349,6.2184,160.82,160.79,45.0]
[1721230637532,6.2181,160.82,160.78,45.0]
[1721230637724,6.2178,160.83,160.79,1.24359356]
[1721230638045,6.2169,160.85,160.8,7.46227927]
[1721230638347,0.8280178,160.87,160.83,6.2177]
[1721230638521,0.8280178,160.87,160.84,45.0]
[1721230638522,6.2169,160.85,160.84,45.0]
[1721230638723,0.8280178,160.87,160.8,0.17]
[1721230638949,0.8280178,160.87,160.8,79.4165]
[1721230639137,0.8280178,160.87,160.83,6.2177]
[1721230639458,0.82760379,160.86,160.77,15.1708]
[1721230639617,6.2182,160.82,160.77,15.1708]
[1721230639947,0.82760379,160.85,160.77,15.1708]
[1721230640248,6.2193,160.79,160.77,15.1708]
[1721230640452,15.544,160.84,160.73,44.1138]
[1721230640453,6.2197,160.78,160.73,44.1138]
[1721230641156,6.2197,160.78,160.73,62.8138]
[1721230641633,6.2197,160.78,160.74,0.17]
[1721230641839,6.2204,160.76,160.73,16.0155]
[1721230642026,6.2209,160.75,160.73,16.0155]
[1721230642562,15.5479,160.8,160.7,15.5566]
[1721230642719,6.2196,160.79,160.74,6.2211]
[1721230642920,0.82760379,160.82,160.75,6.2207]
[1721230643123,0.82760379,160.82,160.73,15.554]
[1721230643124,16.37380379,160.82,160.73,15.554]
[1721230643351,6.2195,160.79,160.74,45.17]
[1721230643545,6.2193,160.79,160.74,45.17]
[1721230643752,6.2193,160.79,160.74,46.41382116]
[1721230643921,6.2193,160.79,160.74,63.87]
[1721230644118,6.2196,160.78,160.74,70.0911]
[1721230644351,6.2196,160.78,160.75,1.24381634]
[1721230644648,0.82760379,160.84,160.74,63.87]
[1721230644852,6.2184,160.82,160.76,6.2201]
[1721230645032,6.2184,160.82,160.77,45.17]
[1721230645223,6.2178,160.83,160.78,15.7126]
[1721230645460,6.2178,160.83,160.79,45.17]
[1721230645637,6.2172,160.85,160.8,16.79060761]
[1721230645824,0.8280178,160.87,160.81,45.17]
[1721230646018,0.8280178,160.87,160.82,46.24331983]
[1721230646324,7.0445178,160.87,160.82,45.0]
[1721230646744,7.0445178,160.87,160.82,51.2179]
[1721230646947,7.0445178,160.87,160.83,0.17]
[1721230647651,0.8280178,160.87,160.83,25.0877]
[1721230647860,0.8280178,160.87,160.84,45.0]
[1721230648057,0.8280178,160.87,160.83,0.17]
[1721230648058,6.2169,160.86,160.83,0.17]
[1721230648218,0.8280178,160.87,160.83,0.17]
[1721230648425,0.8280178,160.87,160.83,17.12674474]
[1721230648621,0.8280178,160.87,160.84,45.0]
[1721230648848,0.8280178,160.87,160.85,0.17]
[1721230649056,0.8280178,160.87,160.84,45.0]
[1721230649222,0.8280178,160.87,160.85,1.24318597]
[1721230649423,0.8280178,160.87,160.86,1.24314496]
[1721230649747,0.8280178,160.87,160.86,1.41314496]
[1721230649925,0.8280178,160.87,160.86,0.17]
[1721230650133,0.8280178,160.87,160.84,45.0]
[1721230651236,7.0445178,160.87,160.84,45.0]
[1721230651579,0.8280178,160.87,160.83,70.0876]
[1721230652117,0.8280178,160.87,160.78,15.5486]
[1721230652118,6.2177,160.83,160.78,15.5486]
[1721230652322,6.6437,160.83,160.65,15.4982]
[1721230652536,6.2235,160.68,160.65,15.4982]
[1721230652754,6.2228,160.7,160.65,15.4982]
[1721230652934,6.2221,160.72,160.66,6.2241]
[1721230653130,6.2227,160.71,160.65,21.7227]
[1721230653457,15.5561,160.71,160.65,34.1982]
[1721230653751,64.566,160.8,160.67,18.7]
[1721230653752,15.553,160.75,160.67,18.7]
[1721230653950,15.553,160.75,160.65,31.0592]
[1721230654119,64.566,160.8,160.65,31.0592]
[1721230654120,6.2212,160.74,160.69,6.223]
[1721230654320,6.2209,160.75,160.7,6.2225]
[1721230654547,6.2209,160.75,160.71,15.5559]
[1721230654754,6.2205,160.76,160.71,21.7782]
[1721230654956,15.549,160.79,160.69,18.7]
[1721230655126,6.2219,160.73,160.7,0.17]
[1721230655326,16.37660379,160.79,160.7,45.34]
[1721230655530,6.2209,160.75,160.7,51.5625]
[1721230656036,0.82760379,160.78,160.7,64.04]
[1721230656233,6.2211,160.75,160.7,70.2627]
[1721230656439,0.82760379,160.78,160.7,70.2627]
[1721230656440,6.2212,160.74,160.7,70.2627]
[1721230656630,6.2208,160.75,160.7,70.2627]
[1721230657049,0.82760379,160.78,160.7,64.04]
[1721230657267,6.2212,160.74,160.7,64.04]
[1721230657565,0.82760379,160.78,160.7,79.5962]
[1721230657782,0.82760379,160.82,160.7,74.04]
[1721230658067,6.2203,160.77,160.7,64.04]
[1721230658230,0.82760379,160.82,160.72,18.7]
[1721230658431,6.2197,160.78,160.73,51.5615]
[1721230658631,6.2202,160.77,160.73,45.34]
[1721230658865,15.547,160.81,160.73,45.34]
[1721230658866,6.2204,160.76,160.73,45.34]
[1721230659154,6.2201,160.77,160.73,45.34]
[1721230660234,6.2206,160.76,160.73,45.17]
[1721230660464,6.2208,160.75,160.73,45.17]
[1721230660763,0.82760379,160.79,160.73,45.17]
[1721230660935,0.82760379,160.79,160.73,45.0]
[1721230661266,0.82760379,160.82,160.73,45.0]
[1721230662150,6.22,160.78,160.73,51.2215]
[1721230662460,0.82760379,160.82,160.73,45.0]
[1721230663168,0.82760379,160.82,160.75,6.2208]
[1721230663470,0.82760379,160.82,160.73,45.0]
[1721230664067,0.82760379,160.82,160.73,51.2215]
[1721230664270,0.82760379,160.82,160.74,0.17]
[1721230665950,6.2202,160.77,160.74,0.17]